fUSD/lending_fUSD_20251231
["ID","MTS","AMOUNT","RATE_DAILY","PERIOD"]
[400237767,1767210901637,300.0,0.00010798,2]
[400237768,1767210953392,183.78489306,0.00010699,2]
[400237769,1767210963937,273.2725393,0.00010699,2]
[400237770,1767210965531,500.0,0.00043215,120]
[400237771,1767210966523,4122.3,0.00043215,30]
[400237772,1767211009145,431.27042242,0.00010798,2]
[400237773,1767211009211,500.0,0.00010798,2]
[400237774,1767211021261,300.0,0.00010798,2]
[400237775,1767211021523,150.0,0.00010798,2]
[400237776,1767211021879,168.58656729,0.00010798,2]
[400237777,1767211025590,500.0,0.00010699,2]
[400237778,1767211027767,500.0,0.00043215,120]
[400237779,1767211028329,181.31956643,0.00010798,2]
[400237780,1767211030166,209.43924444,0.00043215,120]
[400237781,1767211091575,1200.0,0.00010798,2]
[400237782,1767211104121,242.51163859,0.00010699,2]
[400237783,1767211183905,2027.99499056,0.00010789,2]
[400237784,1767211183927,10000.01,0.00010789,2]
[400237785,1767211183954,7828.90113339,0.00010789,2]
[400237786,1767211201248,300.0,0.00010798,2]
[400237787,1767211201287,1200.0,0.00010798,2]
[400237788,1767211201420,150.0,0.00010798,2]
[400237789,1767211229990,521.10886661,0.00010699,2]
[400237790,1767211230018,1681.70943339,0.00010699,2]
[400237791,1767211244409,161.67442574,0.00010699,2]
[400237792,1767211261139,500.0,0.00043205,120]
[400237793,1767211261870,300.0,0.00010798,2]
[400237794,1767211275704,151.0,0.00010796,2]
[400237795,1767211293960,2240.126,0.00010583,2]
[400237796,1767211294092,172.477,0.00010583,2]
[400237797,1767211367108,865.3681,0.00010699,2]
[400237798,1767211379534,2565.2399,0.00010699,2]
[400237799,1767211381866,150.0,0.00010798,2]
[400237800,1767211384674,161.67442572,0.00010699,2]
[400237801,1767211441570,300.0,0.00010798,2]
[400237802,1767211449309,1250.74071515,0.00010699,2]
[400237803,1767211449331,5142.47458485,0.00010699,2]
[400237804,1767211501222,300.0,0.00010798,2]
[400237805,1767211501461,1200.0,0.00010798,2]
[400237806,1767211514963,161.67442572,0.00010699,2]
[400237807,1767211523031,3195.86098943,0.00010699,2]
[400237808,1767211523058,484.92551057,0.00010699,2]
[400237809,1767211561508,300.0,0.00010798,2]
[400237810,1767211561885,500.0,0.00043206,120]
[400237811,1767211576897,151.0,0.00043206,50]
[400237812,1767211578096,167.0104,0.00010699,2]
[400237813,1767211584270,158.2378,0.00010699,2]
[400237817,1767211678889,8889.83628943,0.00010699,2]
[400237818,1767211678912,10000.01,0.00010699,2]
[400237819,1767211678934,10000.01,0.00010699,2]
[400237820,1767211678960,10000.01,0.00010699,2]
[400237821,1767211678982,3438.29781057,0.00010699,2]
[400237822,1767211689330,200.0,0.00043206,30]
[400237823,1767211741522,150.0,0.00010798,2]
[400237959,1767211774904,9850.01,0.00010699,2]
[400237960,1767211774931,10000.01,0.00010699,2]
[400237961,1767211774957,10000.01,0.00010699,2]
[400237962,1767211774980,10000.01,0.00010699,2]
[400237963,1767211775001,10000.01,0.00010699,2]
[400237964,1767211775022,10000.01,0.00010699,2]
[400237965,1767211775050,10000.01,0.00010699,2]
[400237966,1767211775072,10000.01,0.00010699,2]
[400237967,1767211775094,10000.01,0.00010699,2]
[400237968,1767211775589,-279.5317789,0.00010699,2]
[400237969,1767211777061,-346.87445424,0.00010699,2]
[400237970,1767211779179,-211.79362068,0.00010699,2]
[400237971,1767211780572,-281.02478493,0.00010699,2]
[400237972,1767211782059,-278.54693503,0.00010699,2]
[400237973,1767211783609,-167.75983379,0.00010699,2]
[400237974,1767211785656,-184.94993181,0.00010699,2]
[400237975,1767211790476,-192.34932057,0.00010699,2]
[400237976,1767211792616,-192.71827511,0.00010699,2]
[400237977,1767211794171,-205.20797754,0.00010699,2]
[400237978,1767211795973,-165.58825374,0.00010699,2]
[400237979,1767211797082,-263.16239389,0.00010699,2]
[400237980,1767211799063,-336.01279608,0.00010699,2]
[400237981,1767211801721,-318.04354599,0.00010699,2]
[400237982,1767211805502,626.360794,0.00010645,2]
[400237983,1767211808788,-154.23257144,0.00010699,2]
[400237984,1767211810764,-293.00786757,0.00010699,2]
[400237985,1767211813151,-200.0,0.00010699,2]
[400237986,1767211815063,-235.31482456,0.00010699,2]
[400237987,1767211816586,-343.9873096,0.00010699,2]
[400237988,1767211818705,-246.34227616,0.00010699,2]
[400237989,1767211822307,-185.8161668,0.00010699,2]
[400237990,1767211822697,1606.3086936,0.00043206,120]
[400237991,1767211823861,-281.83744913,0.00010699,2]
[400237992,1767211827349,-282.73254406,0.00010699,2]
[400237993,1767211829799,-296.20637932,0.00010699,2]
[400237999,1767211832153,-876.25,0.00010699,2]
[400238000,1767211832166,-99981.52300845,0.00010699,2]
[400238001,1767211832346,-158.26933632,0.00010699,2]
[400238002,1767211832363,-859.36349727,0.00010699,2]
[400238005,1767211832376,-288.10200457,0.00010699,2]
[400238009,1767211833400,500.0,0.00010698,2]
[400238010,1767211833549,376.02170115,0.00010698,2]
[400238011,1767211833749,-161.99344713,0.00010699,2]
[400238012,1767211834626,500.0,0.00010698,2]
[400238013,1767211834685,500.0,0.00010698,2]
[400238014,1767211834742,282.99186742,0.00010698,2]
[400238015,1767211835103,-174.56802001,0.00010699,2]
[400238020,1767211838249,-3576.29312021,0.00010699,2]
[400238021,1767211838312,-195.0,0.00010699,2]
[400238022,1767211838326,-991.5199999,0.00010699,2]
[400238023,1767211838338,-1285.24910324,0.00010699,2]
[400238024,1767211838352,-1538.66320084,0.00010699,2]
[400238025,1767211838364,-18827.66812267,0.00010699,2]
[400238026,1767211838410,-34687.94074663,0.00010699,2]
[400238027,1767211838467,-5137.24697168,0.00010699,2]
[400238028,1767211838480,-2239.03066838,0.00010699,2]
[400238029,1767211838492,-7563.01639701,0.00010699,2]
[400238030,1767211838504,-61225.0702072,0.00010699,2]
[400238031,1767211838516,-2145.31886472,0.00010699,2]
[400238033,1767211838528,-834.92797933,0.00010699,2]
[400238035,1767211838540,-264.61649454,0.00010699,2]
[400238037,1767211838552,-1961.31161671,0.00010699,2]
[400238260,1767211840826,-375.34315292,0.00010699,2]
[400238263,1767211840843,-671.84751495,0.00010699,2]
[400238265,1767211840855,-10273.87061224,0.00010699,2]
[400238268,1767211840866,-1366.04222303,0.00010699,2]
[400238270,1767211840878,-646546.82239911,0.00010699,2]
[400238272,1767211840887,-238.0,0.00010699,2]
[400238274,1767211840897,-1000.0,0.00010799,2]
[400238276,1767211840906,-250.0,0.00010799,2]
[400238278,1767211840915,-250.0,0.00010901,2]
[400238280,1767211840925,-2041.22992573,0.00011099,2]
[400238282,1767211840935,-5586.40591238,0.00011099,2]
[400238284,1767211840944,-5586.40591233,0.00011299,2]
[400238286,1767211840953,-2041.22992572,0.00011388,2]
[400238288,1767211840962,-255.0,0.00011835,2]
[400238290,1767211840972,-250.0,0.00011879,2]
[400238292,1767211840981,-500.0,0.00012067,2]
[400238294,1767211840990,-500.0,0.00012067,2]
[400238296,1767211841000,-500.0,0.00012067,2]
[400238298,1767211841009,-500.0,0.00012067,2]
[400238300,1767211841019,-502.99400047,0.00012067,2]
[400238302,1767211841028,-500.0,0.00012067,2]
[400238304,1767211841038,-2041.22992572,0.00012077,2]
[400238306,1767211841047,-1000.0,0.00012615,2]
[400238308,1767211841056,-500.0,0.00012615,2]
[400238310,1767211841065,-500.0,0.00012615,2]
[400238312,1767211841075,-2041.22992572,0.00012766,2]
[400238314,1767211841084,-362.0,0.00012968,2]
[400238316,1767211841094,-2041.22992572,0.00013455,2]
[400238318,1767211841104,-500.0,0.00013698,2]
[400238321,1767211841114,-394.25410514,0.00013698,2]
[400238323,1767211841124,-1000.0,0.00013699,2]
[400238325,1767211841134,-166.66,0.00013811,2]
[400238327,1767211841143,-166.66,0.00014101,2]
[400238329,1767211841153,-2041.22992572,0.00014144,2]
[400238331,1767211841162,-150.34,0.00014261,2]
[400238333,1767211841171,-2068.87,0.00014329,2]
[400238335,1767211841181,-999.0,0.00014374,3]
[400238337,1767211841190,-500.0,0.0001439,2]
[400238339,1767211841199,-166.66,0.00014392,2]
[400238341,1767211841208,-205.88,0.00014432,2]
[400238343,1767211841217,-166.66,0.00014683,2]
[400238345,1767211841227,-3462.0,0.0001469,2]
[400238347,1767211841236,-1328.0,0.0001469,2]
[400238349,1767211841246,-613.0,0.0001469,2]
[400238351,1767211841255,-1403.0,0.0001469,2]
[400238353,1767211841265,-432.0,0.0001469,2]
[400238355,1767211841275,-1264.0,0.0001469,2]
[400238357,1767211841285,-1199.0,0.0001469,2]
[400238359,1767211841295,-913.0,0.0001469,2]
[400238361,1767211841304,-2433.0,0.0001469,2]
[400238363,1767211841316,-387.477,0.0001469,2]
[400238366,1767211841326,-4812.0,0.0001469,2]
[400238368,1767211841335,-200.0,0.00014724,2]
[400238370,1767211841345,-207.4,0.00014724,2]
[400238372,1767211841355,-349.36211533,0.00014724,2]
[400238374,1767211841364,-150.0,0.00014794,2]
[400238376,1767211841374,-150.0,0.00014794,2]
[400238378,1767211841383,-150.0,0.00014794,2]
[400238380,1767211841392,-150.114,0.00014794,2]
[400238382,1767211841403,-150.065,0.00014794,2]
[400238384,1767211841413,-150.0,0.00014794,2]
[400238386,1767211841422,-211.705,0.00014794,2]
[400238388,1767211841431,-250.0,0.00014794,2]
[400238390,1767211841441,-250.0,0.00014794,2]
[400238392,1767211841450,-227.273,0.00014794,2]
[400238394,1767211841459,-167.0,0.00014794,2]
[400238396,1767211841468,-2041.22992572,0.00014833,2]
[400238398,1767211841477,-166.66,0.00014973,2]
[400238400,1767211841489,-150.34,0.00015054,2]
[400238402,1767211841498,-166.66,0.00015264,2]
[400238404,1767211841508,-162.80268362,0.00015288,2]
[400238406,1767211841518,-150.0,0.00015288,2]
[400238408,1767211841527,-150.0,0.00015288,2]
[400238410,1767211841537,-150.0,0.00015288,2]
[400238412,1767211841546,-153.50138107,0.00015288,2]
[400238414,1767211841556,-150.0,0.00015288,2]
[400238416,1767211841565,-153.00859182,0.00015288,2]
[400238418,1767211841575,-150.0,0.00015288,2]
[400238420,1767211841585,-159.79234636,0.00015288,2]
[400238422,1767211841595,-200.0,0.00015345,2]
[400238424,1767211841605,-965.61,0.00015389,2]
[400238426,1767211841615,-481.83,0.00015389,2]
[400238429,1767211841625,-481.83,0.00015389,2]
[400238431,1767211841635,-2041.22992572,0.00015522,2]
[400238433,1767211841646,-151.83594907,0.00015566,2]
[400238435,1767211841657,-214.02,0.00015695,2]
[400238437,1767211841666,-831.0,0.0001572,2]
[400238439,1767211841676,-831.0,0.0001572,2]
[400238441,1767211841687,-150.34,0.00015846,2]
[400238443,1767211841696,-151.0,0.00015971,2]
[400238445,1767211841706,-500.0,0.00015973,2]
[400238447,1767211841715,-500.0,0.00015973,2]
[400238449,1767211841725,-500.0,0.00015973,2]
[400238451,1767211841735,-500.0,0.00015973,2]
[400238453,1767211841744,-500.0,0.00015973,2]
[400238455,1767211841754,-500.0,0.00015973,2]
[400238457,1767211841764,-500.0,0.00015973,2]
[400238459,1767211841773,-500.0,0.00015973,2]
[400238461,1767211841785,-500.0,0.00015973,2]
[400238464,1767211841795,-500.0,0.00015973,2]
[400238466,1767211841805,-500.0,0.00015973,2]
[400238468,1767211841815,-500.0,0.00015973,2]
[400238470,1767211841825,-500.0,0.00015973,2]
[400238472,1767211841835,-500.0,0.00015973,2]
[400238474,1767211841844,-328.39570891,0.00015973,2]
[400238476,1767211841854,-295.12,0.00015973,2]
[400238478,1767211841863,-151.0,0.00015975,2]
[400238480,1767211841873,-151.0,0.00015975,2]
[400238482,1767211841882,-151.0,0.00015975,2]
[400238484,1767211841892,-151.0,0.00015976,2]
[400238486,1767211841902,-151.0,0.00015976,2]
[400238488,1767211841911,-151.0,0.00015976,2]
[400238490,1767211841923,-151.0,0.00015976,2]
[400238492,1767211841933,-552.06365,0.00016,2]
[400238494,1767211841943,-1600.0,0.00016013,2]
[400238496,1767211841952,-2041.22992572,0.00016211,2]
[400238498,1767211841962,-481.83,0.00016241,2]
[400238501,1767211841971,-170.06747686,0.00016338,2]
[400238503,1767211841981,-481.83,0.00016348,2]
[400238505,1767211841991,-481.83,0.00016348,2]
[400238507,1767211842001,-963.66,0.00016348,2]
[400238509,1767211842011,-831.0,0.0001636,2]
[400238510,1767211842020,-831.0,0.0001636,2]
[400238511,1767211842029,-500.0,0.00016411,2]
[400238512,1767211842039,-660.35,0.00016411,2]
[400238513,1767211842048,-660.35,0.00016411,2]
[400238514,1767211842058,-660.35,0.00016411,2]
[400238515,1767211842067,-1320.7,0.00016411,2]
[400238516,1767211842076,-1320.7,0.00016411,2]
[400238517,1767211842085,-1320.7,0.00016411,2]
[400238518,1767211842094,-1320.7,0.00016411,2]
[400238519,1767211842104,-1320.7,0.00016411,2]
[400238520,1767211842114,-1320.7,0.00016411,2]
[400238521,1767211842124,-1320.7,0.00016411,2]
[400238523,1767211842133,-1320.7,0.00016411,2]
[400238525,1767211842143,-1320.7,0.00016411,2]
[400238527,1767211842152,-660.35,0.00016411,2]
[400238529,1767211842161,-1320.7,0.00016411,2]
[400238531,1767211842170,-151.83594907,0.00016431,2]
[400238533,1767211842180,-4254.5,0.00016438,2]
[400238535,1767211842190,-500.0,0.00016438,2]
[400238537,1767211842199,-15619.11,0.00016438,2]
[400238539,1767211842209,-164.68,0.0001644,2]
[400238541,1767211842218,-164.68,0.0001644,2]
[400238543,1767211842227,-170.06747686,0.00016479,2]
[400238545,1767211842236,-1000.0,0.00016521,2]
[400238547,1767211842246,-1000.0,0.00016521,2]
[400238549,1767211842255,-1000.0,0.00016521,2]
[400238551,1767211842264,-1100.50654369,0.00016521,2]
[400238553,1767211842274,-192.89183831,0.00016521,2]
[400238555,1767211842283,-1000.0,0.00016521,2]
[400238557,1767211842292,-1000.0,0.00016521,2]
[400238559,1767211842302,-1000.0,0.00016521,2]
[400238561,1767211842311,-1000.0,0.00016521,2]
[400238563,1767211842320,-1000.0,0.00016521,2]
[400238565,1767211842330,-1000.0,0.00016521,2]
[400238567,1767211842339,-1085.69967803,0.00016521,2]
[400238569,1767211842349,-1000.0,0.00016521,2]
[400238571,1767211842359,-1000.0,0.00016521,2]
[400238573,1767211842368,-170.06747686,0.00016619,2]
[400238575,1767211842378,-150.34,0.00016638,2]
[400238577,1767211842387,-3825.0,0.00016712,2]
[400238579,1767211842397,-4254.5,0.00016712,2]
[400238581,1767211842406,-170.06747686,0.0001676,2]
[400238583,1767211842416,-2806.2753,0.0001683,2]
[400238585,1767211842426,-2806.2753,0.0001683,2]
[400238588,1767211842435,-2806.2753,0.0001683,2]
[400238590,1767211842444,-2806.2753,0.0001685,2]
[400238592,1767211842455,-2806.2753,0.0001688,2]
[400238594,1767211842464,-170.06747686,0.000169,2]
[400238595,1767211842474,-2041.22992572,0.000169,2]
[400238597,1767211842483,-2806.2753,0.0001691,2]
[400238599,1767211842492,-2806.27531,0.0001693,2]
[400238601,1767211842502,-239.0,0.00016945,2]
[400238603,1767211842512,-150.0,0.00016973,2]
[400238606,1767211842522,-235.84568341,0.00016975,2]
[400238608,1767211842532,-164.68,0.00016975,2]
[400238610,1767211842541,-2920.195348,0.00016979,2]
[400238612,1767211842550,-463.9580747,0.00016979,2]
[400238614,1767211842559,-116850.7143096,0.00016979,2]
[400238616,1767211842568,-38950.2381032,0.00016985,2]
[400238618,1767211842578,-4254.5,0.00016986,2]
[400238620,1767211842587,-169.70178779,0.00016986,2]
[400238622,1767211842597,-235.84568341,0.0001699,2]
[400238624,1767211842606,-235.84568341,0.0001699,2]
[400238626,1767211842616,-164.68,0.0001699,2]
[400238628,1767211842625,-164.68,0.0001699,2]
[400238630,1767211842634,-1467.6351492,0.00016994,2]
[400238632,1767211842646,-151.0,0.00016997,2]
[400238634,1767211842656,-300.0,0.00016999,2]
[400238636,1767211842665,-300.0,0.00016999,2]
[400238638,1767211842674,-300.0,0.00016999,2]
[400238640,1767211842684,-300.0,0.00016999,2]
[400238642,1767211842693,-300.0,0.00016999,2]
[400238644,1767211842703,-150.0,0.00016999,2]
[400238646,1767211842712,-150.0,0.00016999,2]
[400238648,1767211842722,-150.0,0.00016999,2]
[400238650,1767211842732,-1594697.91557013,0.00017,2]
[400238878,1767211844900,-681.27642147,0.00011999,2]
[400238885,1767211844954,-4905.12949086,0.00011999,2]
[400238887,1767211844964,-6516.0,0.0001469,2]
[400238889,1767211844973,-1000.0,0.00015542,2]
[400238891,1767211844983,-1000.0,0.00015542,2]
[400238894,1767211844993,-740.2253419,0.00015542,2]
[400238896,1767211845006,-259.7746581,0.00015542,2]
[400238898,1767211845017,-93.97034193,0.00015542,2]
[400238900,1767211845028,-330.28996395,0.00015542,2]
[400238903,1767211845040,-533.77400246,0.00015542,2]
[400238905,1767211845051,-41.96569166,0.00015542,2]
[400238907,1767211845061,-1000.0,0.00015542,2]
[400238909,1767211845070,-870.82691335,0.00015542,2]
[400238911,1767211845081,-129.17308665,0.00015542,2]
[400238913,1767211845090,-2935.561912,0.00017,2]
[400239040,1767211846239,-892.50947183,0.00016,2]
[400239042,1767211846251,-107.49052817,0.00016,2]
[400239044,1767211846262,-1185.03335241,0.00017,2]
[400239048,1767211846292,-6207.06459416,0.00017,2]
[400239051,1767211846305,-301.107492,0.00017,2]
[400239056,1767211846349,-3919.033166,0.00017,2]
[400239063,1767211846407,-862.07204678,0.00017,2]
[400239066,1767211846418,-7181.94319293,0.00017,2]
[400239068,1767211846430,-876.9,0.00017,2]
[400239167,1767211847449,-4106.00461,0.00017,2]
[400239169,1767211847462,-151622.92160853,0.00017,2]
[400239172,1767211847474,-23721.38823331,0.00017,2]
[400240447,1767211861172,500.0,0.00043206,120]
[400240448,1767211873055,151.0,0.00043206,50]
[400240449,1767211940264,-211.32236673,0.00010699,2]
[400240450,1767211942334,-289.77835118,0.00010699,2]
[400240451,1767211946448,-223.0315306,0.00010699,2]
[400240452,1767211947917,-200.0,0.00010699,2]
[400240453,1767211949405,-249.982578,0.00010699,2]
[400240454,1767211951289,-248.35426104,0.00010699,2]
[400240455,1767211955012,-229.12794443,0.00010699,2]
[400240456,1767211957169,-198.62203879,0.00010699,2]
[400240457,1767211960848,-300.0,0.00010699,2]
[400240458,1767211962495,-231.55522864,0.00010699,2]
[400240459,1767211964039,-247.58608858,0.00010699,2]
[400240460,1767211966410,-229.41689969,0.00010699,2]
[400240461,1767211967839,-355.92758402,0.00010699,2]
[400240462,1767211969870,-226.57934152,0.00010699,2]
[400240463,1767211971976,-169.0957973,0.00010699,2]
[400240464,1767211974702,-203.86,0.00010699,2]
[400240465,1767211977847,-186.43058011,0.00010699,2]
[400240466,1767211980016,-369.83616191,0.00010699,2]
[400240467,1767211982660,-218.10345719,0.00010699,2]
[400240468,1767211984408,-227.98208343,0.00010699,2]
[400240469,1767211986359,-300.0,0.00010699,2]
[400240470,1767211988290,-168.42970965,0.00010699,2]
[400240471,1767211991495,-171.15624172,0.00010699,2]
[400240472,1767211993008,-171.71890271,0.00010699,2]
[400240473,1767211995086,-175.13436172,0.00010699,2]
[400240474,1767211997712,-208.5949635,0.00010699,2]
[400240475,1767211999260,-168.32198253,0.00010699,2]
[400240476,1767211999365,1954.678661,0.00010645,2]
[400240477,1767212002373,-216.64421528,0.00010699,2]
[400240478,1767212005705,-257.62707532,0.00010699,2]
[400240479,1767212009816,-361.80268287,0.00010699,2]
[400240480,1767212011291,-417.26014263,0.00010699,2]
[400240481,1767212014188,-157.65642569,0.00010699,2]
[400240482,1767212016067,-614.24729515,0.00010699,2]
[400240483,1767212017886,-238.25944554,0.00010699,2]
[400240484,1767212019056,-614.65815078,0.00010699,2]
[400240485,1767212021819,-164.77834246,0.00010699,2]
[400240486,1767212023449,-224.98848957,0.00010699,2]
[400240487,1767212025483,-328.45095681,0.00010699,2]
[400240488,1767212027190,-182.06787261,0.00010699,2]
[400240489,1767212029384,-184.47066003,0.00010699,2]
[400240490,1767212033795,-177.00021117,0.00010699,2]
[400240491,1767212036079,-227.8621712,0.00010699,2]
[400240492,1767212037461,-183.78489306,0.00010699,2]
[400240493,1767212039015,-192.99831103,0.00010699,2]
[400240494,1767212040559,-689.34482518,0.00010699,2]
[400240495,1767212041545,300.0,0.00010698,2]
[400240496,1767212042062,-159.756,0.00010699,2]
[400240497,1767212044827,-634.29628438,0.00010699,2]
[400240498,1767212046505,-248.22109801,0.00010699,2]
[400240499,1767212048521,-184.63920597,0.00010699,2]
[400240500,1767212050573,-250.0,0.00010699,2]
[400240501,1767212053630,-335.22943184,0.00010699,2]
[400240502,1767212056196,-315.51067724,0.00010699,2]
[400240503,1767212057735,-257.45117937,0.00010699,2]
[400240504,1767212059354,-199.20422336,0.00010699,2]
[400240505,1767212065115,-319.86251986,0.00010699,2]
[400240506,1767212102184,150.0,0.00010698,2]
[400240508,1767212161495,300.0,0.00010698,2]
[400240509,1767212165811,500.0,0.00043207,120]
[400240510,1767212281863,150.0,0.00010698,2]
[400240511,1767212336168,218.10345719,0.00010599,2]
[400240512,1767212341260,300.0,0.00010698,2]
[400240513,1767212401177,300.0,0.00010698,2]
[400240514,1767212426527,433.38,0.00043202,30]
[400240515,1767212441088,985.03,0.00043202,30]
[400240516,1767212460861,500.0,0.00043202,120]
[400240517,1767212461506,150.0,0.00010698,2]
[400240518,1767212475478,151.0,0.00010696,2]
[400240519,1767212494193,155.034,0.00010485,2]
[400240520,1767212494244,3085.81951924,0.00010485,2]
[400240521,1767212494268,68.69048076,0.00010485,2]
[400240522,1767212521230,300.0,0.00010698,2]
[400240523,1767212566111,870.6337,0.00010599,2]
[400240524,1767212641401,300.0,0.00010698,2]
[400240525,1767212642080,150.0,0.00010698,2]
[400240526,1767212701179,300.0,0.00010698,2]
[400240527,1767212701240,1200.0,0.00010698,2]
[400240529,1767212761472,500.0,0.00043202,120]
[400240530,1767212795376,-211.45180362,0.00010699,2]
[400240531,1767212797369,-203.47415908,0.00010699,2]
[400240532,1767212798902,-264.31997141,0.00010699,2]
[400240533,1767212821880,575.1,0.00030137,120]
[400240537,1767212850297,2475.5391,0.00010599,2]
[400240539,1767212881252,300.0,0.00010698,2]
[400240553,1767212967436,4035.14671924,0.00010599,2]
[400240554,1767212967467,10000.01,0.00010599,2]
[400240555,1767212967496,10000.01,0.00010599,2]
[400240556,1767212967523,10000.01,0.00010599,2]
[400240557,1767212967550,10000.01,0.00010599,2]
[400240558,1767212967577,10000.01,0.00010599,2]
[400240559,1767212967603,10000.01,0.00010599,2]
[400240560,1767212967629,10000.01,0.00010599,2]
[400240561,1767212967655,10000.01,0.00010599,2]
[400240562,1767212967681,10000.01,0.00010599,2]
[400240564,1767212968320,-207.30157629,0.00010599,2]
[400240565,1767212972131,-342.9528579,0.00010599,2]
[400240566,1767212973920,-292.56133151,0.00010599,2]
[400240567,1767212976976,-255.0,0.00010599,2]
[400240568,1767212981014,842.815766,0.00010545,2]
[400240569,1767213001146,300.0,0.00010598,2]
[400240570,1767213001187,1200.0,0.00010598,2]
[400240571,1767213001351,300.0,0.00010598,2]
[400240572,1767213001690,-171.52941078,0.00010599,2]
[400240573,1767213005443,-302.53539732,0.00010599,2]
[400240574,1767213006977,-236.00361132,0.00010599,2]
[400240575,1767213010653,-152.7266571,0.00010599,2]
[400240576,1767213013776,-252.27176357,0.00010599,2]
[400240577,1767213015901,-272.83521507,0.00010599,2]
[400240578,1767213017313,-346.12811324,0.00010599,2]
[400240579,1767213018322,-142.55859657,0.00010599,2]
[400240580,1767213018352,-10000.01,0.00010599,2]
[400240581,1767213018432,-10000.01,0.00010599,2]
[400240582,1767213018572,-10000.01,0.00010599,2]
[400240583,1767213018683,-10000.01,0.00010599,2]
[400240584,1767213018800,-10000.01,0.00010599,2]
[400240585,1767213018947,-10000.01,0.00010599,2]
[400240586,1767213019074,-10000.01,0.00010599,2]
[400240587,1767213020681,-10000.01,0.00010599,2]
[400240588,1767213020973,-244.45925297,0.00010599,2]
[400240589,1767213022647,-464.24425929,0.00010599,2]
[400240590,1767213024612,-159.31640209,0.00010599,2]
[400240591,1767213026602,-272.64371643,0.00010599,2]
[400240592,1767213028819,-220.76140148,0.00010599,2]
[400240604,1767213031321,-9797.0,0.00010599,2]
[400240612,1767213031375,-702.53762416,0.00010599,2]
[400240615,1767213031386,-388.29480477,0.00010599,2]
[400240617,1767213031398,-328.0184482,0.00010599,2]
[400240619,1767213031410,-1119.94014192,0.00010599,2]
[400240621,1767213031421,-1472.73296337,0.00010599,2]
[400240623,1767213031432,-4400.0939247,0.00010599,2]
[400240625,1767213031447,-182180.20905449,0.00010599,2]
[400240627,1767213031458,-734.91789651,0.00010599,2]
[400240631,1767213031493,-23576.0,0.00010599,2]
[400240633,1767213031504,-600.11131002,0.00010599,2]
[400240635,1767213031516,-8108.35026846,0.00010599,2]
[400240700,1767213031973,-186.35240868,0.00010599,2]
[400240888,1767213033899,-175.92842549,0.00010599,2]
[400240956,1767213037484,-111347.5967216,0.00010599,2]
[400240957,1767213037497,-2560.5904227,0.00010599,2]
[400240958,1767213037535,-9441.08176239,0.00010599,2]
[400240959,1767213037547,-302.64238328,0.00010599,2]
[400240960,1767213037559,-984.039998,0.00010599,2]
[400240961,1767213037590,-841.23906329,0.00010599,2]
[400240962,1767213037603,-8728.2,0.00010599,2]
[400240963,1767213037646,-490.0,0.00010599,2]
[400240964,1767213037663,-389.43608,0.00010599,2]
[400241045,1767213039264,-309.64564772,0.00010599,2]
[400241048,1767213040186,-66270.30777562,0.00010599,2]
[400241049,1767213040219,-350.64,0.00010599,2]
[400241050,1767213040236,-645.92940799,0.00010599,2]
[400241051,1767213040252,-434.67622361,0.00010599,2]
[400241052,1767213040269,-384762.34096086,0.00010599,2]
[400241053,1767213040280,-1947.6115,0.00010599,2]
[400241054,1767213040290,-250.0,0.00010599,2]
[400241055,1767213040301,-237.0,0.00010599,2]
[400241056,1767213040311,-250.0,0.00010679,2]